Workbook

Sheet Summary
B4: S U M M A R Y O F C O S T
B6: SECTION | C6: DESCRIPTION | K6: AMOUNT (ZAR)
B7: SCHEDULE A | C7: PRELIMINARY AND GENERAL
B9: ='[1]SCHEDULE A'!A3 -> 1200 | C9: GENERAL REQUIREMENTS AND PROVISIONS
B10: ='[1]SCHEDULE A'!A60 -> 1300 | C10: CONTRACTOR'S ESTABLISHMENT ON SITE AND GENERAL OBLIGATIONS
B11: ='[1]SCHEDULE A'!A117 -> 1400 | C11: HOUSING, OFFICES AND LABORATORIES FOR THE ENGINEER'S SITE PERSONNEL
B12: TOTAL SCHEDULE A
B14: SCHEDULE B | C14: ROADWORKS
B16: ='[1]SCHEDULE A'!A262 -> 1500 | C16: ACCOMMODATION OF TRAFFIC
B17: 1600 | C17: OVERHAUL
B18: ='[1]SCHEDULE A'!A388 -> 1700 | C18: CLEARING AND GRUBBING
B19: 1800 | C19: DAYWORKS
B20: ='[1]SCHEDULE A'!A572 -> 2100 | C20: DRAINS
B21: ='[1]SCHEDULE A'!A680 -> 2200 | C21: PREFABRICATED CULVERTS
B22: ='[1]SCHEDULE A'!A797 -> 2300 | C22: CONCRETE KERBING, CONCRETE CHANNELLING, CHUTES AND DOWNPIPES AND CONCRETE LININGS FOR OPEN DRAINS
B23: 3100 | C23: BORROW MATERIALS
B24: ='[1]SCHEDULE A'!A1032 -> 3300 | C24: MASS EARTHWORKS
B25: ='[1]SCHEDULE A'!A1086 -> 3400 | C25: PAVEMENT LAYERS OF GRAVEL MATERIALS
B26: ='[1]SCHEDULE A'!A1152 -> 3500 | C26: STABILIZATION
B27: ='[1]SCHEDULE A'!A1458 -> 5100 | C27: PITCHING, STONEWORK AND PROTECTION AGAINST EROSION
B28: 5200 | C28: ='5200'!C6 -> GABIONS
B29: ='[1]SCHEDULE A'!A1580 -> 5400 | C29: GUARDRAILS
B30: ='[1]SCHEDULE A'!A1643 -> 5600 | C30: ROAD SIGNS
B31: ='[1]SCHEDULE A'!A1696 -> 5700 | C31: ROAD MARKINGS
B32: 5900 | C32: FINISHING THE ROAD AND ROAD RESERVES AND TREATING OLD ROADS
B33: 7300 | C33: ='7300'!C6 -> CONCRETE BLOCK PAVING FOR ROADS
B34: 8100 | C34: TESTING MATERIAL AND WORKMANSHIP
B35: TOTAL SCHEDULE B
B37: SCHEDULE C | C37: PROVISIONAL SUMS
B39: C1 | C39: PROVISION OF STRUCTURED TRAINING
B40: TOTAL SCHEDULE C
B42: SUMMARY OF SCHEDULES
B44: =B7&" "&C7 -> SCHEDULE A PRELIMINARY AND GENERAL
B45: =B14&" "&C14 -> SCHEDULE B ROADWORKS
B46: =B37&" "&C37 -> SCHEDULE C PROVISIONAL SUMS
B47: SUB-TOTAL
B49: Add 10% CPA (Contract Price Adjustment)
B50: Add 10% CONTINGENCIES (The sum provided here is under the sole control of the engineer and may be
B51: deducted in whole or part)
B52: SUB-TOTAL
B54: 15% Value Added Tax (VAT)
B56: TOTAL CONSTRUCTION COST
G58: C2.2.1

Sheet 1200
B2: SCHEDULE A : GENERAL
G3: SECTION 1200
B4: ITEM | C4: DESCRIPTION | D4: UNIT | E4: QTY | F4: RATE | G4: AMOUNT
B6: 1200 | C6: GENERAL REQUIREMENTS AND PROVISIONS
B8: B12.01 | C8: The contractor's obligations in respect of local and other
C9: labourers:
C11: (a) Utility services
C12: (i) Relocation of services and payments to service owners | D12: Prov Sum | E12: 1.00 | F12: R200,000.00 | G12: =E12*F12 -> R200,000.00
C13: (ii) Handling costs and profit in respect of sub-item B12.01(a)(i) above | D13: % | E13: 10.00 | F13: =F12*E13% -> R20,000.00 | G13: =F13 -> R20,000.00
B16: B12,03 | C16: Provision for Relocation/Protection of Services
C18: (a) Allow a provisional sum for existing services/ Eskom to be relocated and/or protected as ordered by the engineer | D18: Prov Sum | E18: 1.00 | F18: R600,000.00 | G18: =E18*F18 -> R600,000.00
C20: (b) By the contractor (boundary walls and fences) | D20: m | E20: 300.00
C22: (c) Handling cost and profit in respect of subitem B12,03(a), B12,03(b) | D22: %
B24: B12,04 | C24: Provision for a Community Liaison Officer
C26: (a) Provisional Sum for the payment of the Community Liaison Officer | D26: Prov Sum | E26: 12.00 | F26: R8,500.00 | G26: R102,000.00
C27: (b) Handling costs and profit in respect of subitem B12,04(a) | D27: % | E27: 10.00 | F27: =F26*E27% -> R850.00 | G27: =G26*0.1 -> R10,200.00
C29: Provisional sum for the payment of the Community
C30: Liaison Officer and PSC Members
C32: (a) Provisional Sum for PSC | D32: Prov Sum | E32: 1.00 | F32: R30,000.00 | G32: R30,000.00
C33: (b) Handling costs and profit in respect of subitem above | D33: % | E33: 10.00 | F33: =F32 -> R30,000.00 | G33: =G32*0.1 -> R3,000.00
B35: B12,05 | C35: Health and Safety obligations
C36: (a) Contractor's initial obligation in respect of the OHS Act and construction regulations | D36: L/Sum | E36: 1.00
C37: (b) Contractor's Time related Obligations in respect of the OHS Act and construction regulations | D37: Month | E37: 12.00
C38: (c) Special information signs | D38: L/Sum | E38: 1.00
C39: (d) Handling costs and profit in respect of subitem B12,05(a)+(b) | D39: % | E39: =G35+G38 -> 0
B41: B12,06 | C41: Supply and Install Contract Notice boards as instructed by the Engineer (as per drawing) | D41: No, | E41: 2.00
B43: B12/C1.1 | C43: Submission of Health and Safety File | D43: L/Sum | E43: 1.00
B45: B12/C1.2 | C45: Site Supervision By Project Engineer
C47: (a) Provisional Sum for Remunerarion of Employers Agent for Quality Control and Site Supervision | D47: Prov.Sum | E47: 1.00 | F47: R350,000.00 | G47: =F47*E47 -> R350,000.00
B56: 1200 | C56: TOTAL CARRIED TO SUMMARY
D58: C2.2.2

Sheet 1300
B2: SCHEDULE A : GENERAL
G3: SECTION 1300
B4: ITEM | C4: DESCRIPTION | D4: UNIT | E4: QTY | F4: RATE | G4: AMOUNT
B6: 1300 | C6: CONTRACTORS ESTABLISHMENT ON SITE AND GENERAL OBLIGATIONS
B8: 13.01 | C8: The contractors general obligations
B10: (a) | C10: Fixed obligations | D10: L/sum | E10: 1.00
B12: (b) | C12: Value related obligations | D12: L/sum | E12: 1.00
B14: (c) | C14: Time related obligations | D14: Month | E14: 1.00
B16: B13.01 | C16: (d)Health and Safety obligations
C17: (e) Execution of the works | D17: Month | E17: 12.00
C18: (f) Environmental obligation | D18: Month | E18: =E17 -> 12.00
C19: (h) Security on site | D19: Month | E19: =E18 -> 12.00
C20: NB: The combined tendered total for subitem (a)
C21: (b) and (c) should not exceed 15% of the tender
C22: sum, excluding VAT, (refer to form H;
C23: CONTRACTORS ESTABLISHMENT ON SITE)
B25: B13.02 | C25: Contractor's initial obligations in respect of the Occupational | D25: L/sum | E25: 1.00
C26: Health and Safety Act and Construction Regulations.
B28: (a) | C28: Preparation of Health & Safety Plan | D28: L/sum | E28: 1.00
B30: (b) | C30: Compilation of a Risk Assessment prior to
C31: commencement of Construction. | D31: L/sum | E31: 1.00
B33: (c) | C33: Health & safety induction training of employees | D33: L/sum | E33: 1.00
B35: (d) | C35: Compilation and keeping up with date the Health &
C36: Safety file which shall include all documentation required
C37: in terms of the Act including COVID-19. Implementation
C38: of the health and Safety plan over the entire construction | D38: Month | E38: 1.00
C39: period
B41: (e) | C41: Handling cost and profit in respect of subitem B13.02 (a) | D41: % | E41: =G38 -> 0
B43: B13.03 | C43: Contractor's time-related obligations in respect of the
C44: Occupational Health and Safety Act and Construction
C45: Regulations including COVID-19 compliance as promulgated. | D45: month | E45: =E38 -> 1.00
B47: B13.04 | C47: Submission of the Health and Safety File, and obtaining
C48: the construction permit | D48: L/sum | E48: 1.00
C50: The combined total tendered for Items B13.02, B13.03
C51: and B13.04 shall not be less than 1% of the total tendered
C52: sum, excluding VAT.
B54: 13/22.26 | C54: Hand excavation to determine the position of existing services | D54: m3 | E54: 150.00
B63: 1300 | C63: TOTAL CARRIED TO SUMMARY
D65: C2.2.3

Sheet 1400
B2: SCHEDULE A : GENERAL
G3: SECTION 1400
B4: ITEM | C4: DESCRIPTION | D4: UNIT | E4: QTY | F4: RATE | G4: AMOUNT
B6: 1400 | C6: HOUSING, OFFICES AND LABORATORIES FOR THE ENGINEER'S SITE PERSONNEL
B8: 14.01 | C8: Office and laboratory accommodation:
B9: (a) | C9: Offices (interior floor space only) | D9: m² | E9: 45.00
B10: (b) | C10: Open concrete working floors, 150mm thick
B11: (c) | C11: Roofs over open concrete working floors
C12: (e) Ablution units | D12: m² | E12: 9.00
B13: (d) | C13: Stores | D13: m² | E13: 18.00
C14: (f) Kitchen Unit
B16: 14.02 | C16: Office furniture:
C17: (a) Chairs | D17: No | E17: 20.00
C18: (d) Desks, complete with drawers and locks | D18: No | E18: 5.00
C19: (f) Conference tables | D19: No | E19: 1.00
B21: 14.03 | C21: Office and laboratory fittings, installations and equipment:
C22: (a) Items measured by number:
C23: (i) 220/250 volt power points | D23: No | E23: 8.00
C24: (ii) Double 80 watt fluorescent-light fittings complete with ballast and tubes | D24: No | E24: 3.00
C25: (iii) Single incandescent-light fittings complete with 100-watt globes | D25: No | E25: 2.00
C26: (xiv) General-purpose steel cupboards with shelves | D26: No | E26: 4.00
B28: B14,03 | C28: (xix) Rain gauge | D28: No | E28: 1.00
C29: (xx) Maximum and minimum thermometer | D29: No | E29: 1.00
B31: ( c) | C31: Items measured by area:
B32: (viii) | C32: Notice boards as specified | D32: no | E32: 2.00
B34: 14.03 | C34: Telecommunications System
C35: (a) Provision of telephone service, including the cost of calls in connection with contract administration and telephone rental | D35: L/ Sum | E35: 1.00
C36: (b) Handling costs and profit in respect of sub-item 14,03(a) above | D36: %
C37: ( c) Provision of Laptop for the use of Engineer | D37: L/Sum
C38: (d) Handling costs and profit in respect of sub-item 14,03(c) above
B40: 14.04 | C40: Car ports as specified at offices and laboratory buildings | D40: No | E40: 5.00
B42: 14.07 | C42: Rented, hotel and other accommodation
C43: (a) Provisional sum for providing rented housing, hotel or other acomodation as described in subsubclause 14,03 (c)(ii) | D43: L/ Sum | E43: 1.00
C44: (b) Handling costs and profit in respect of subitem 14,07(a) | D44: %
B46: 14.08 | C46: Services:
C47: (a) Services at offices:
C48: (i) Fixed costs | D48: Lump Sum | E48: 1.00
C49: (ii) Running costs | D49: month | E49: 6.00
B51: 14.1 | C51: Provision of photostat facilities | D51: month | E51: 6.00
B53: B14.12 | C53: Independent Laboratory
C54: a) Provision for the use of an independent Laboratory for the Engineer* | D54: Prov Sum | E54: 1.00 | F54: R150,000.00 | G54: =F54*E54 -> R150,000.00
C55: b) Handling Cost and profit in respect of item B14.12(a) | D55: =D44 -> % | E55: 10.00 | F55: =F54 -> R150,000.00 | G55: =F55*E55% -> R15,000.00
B57: 1400 | C57: TOTAL CARRIED TO SUMMARY
D59: C2.2.4

Sheet 1500
B2: SCHEDULE B : ROADWORKS
G3: SECTION 1500
B4: ITEM | C4: DESCRIPTION | D4: UNIT | E4: QTY | F4: RATE | G4: AMOUNT
B6: 1500 | C6: ACCOMMODATION OF TRAFFIC
B8: 15.01 | C8: Accomodating traffic and maintaining tempory deviations | D8: km | E8: 1.20
C9: (Including Watering of By Pass/Deviation)
B10: 15.02 | C10: Earthworks for temporary deviations:
B12: (a) | C12: Shaping of temporary deviatons | D12: km | E12: 1.20
C14: (b) Cut and borrow to fill | D14: m3 | E14: =0.15*1200*4 -> 720.00
C16: ( c) Cut to spoil | D16: m3 | E16: 360.00
B18: 15.03 | C18: Temporary traffic control facilies : | D18: No | E18: 6.00
B20: (a) | C20: Flagmen | D20: Man days | E20: =365*1.2 -> 438.00
B22: (b) | C22: Portable STOP & GO-RY signs | D22: No | E22: 4.00
B24: (c) | C24: Box culverts up to and including 1.5 m vertical dimension | D24: No | E24: 10.00
B26: (d) | C26: Box culverts exceeding 1.5 m vertical dimension | D26: No. | E26: 10.00
B28: (e) | C28: Road signs, R- and TR series, (1200 mm dia)
C29: (i) 1200mm | D29: No | E29: 9.00
C30: (ii) 1500mm | D30: No | E30: 9.00
C32: (d) Amber flicker lights | D32: No | E32: 4.00
B34: (f) | C34: Road signs, TW series (1500 mm sides)
C35: (i) 1200mm | D35: No | E35: 2.00
C36: (ii) 2400mm x 400mm | D36: No | E36: 2.00
B38: (g) | C38: Road signs, STW,-DTWG,TGS-, and TG series
C39: (excluding delineators and barricades)
C40: (i) 1200mm | D40: No | E40: 2.00
C41: (ii) 2400mm x 400mm | D41: No | E41: 2.00
B43: (h) | C43: Delineators (DTG50J) | D43: No | E43: 10.00
B45: (ii) | C45: Mounted back to back (1200 mm x 150 mm) | D45: No | E45: 450.00
B47: (iii) | C47: Moveable barricades/road signs combination | D47: No | E47: 8.00
B49: (j) | C49: Traffic cones (750 mm high) | D49: No | E49: 30.00
B51: (n) | C51: Provision of high visibility safety jackets | D51: No | E51: 10.00
B53: B15,11 | C53: Temporary traffic-control facilities
B55: (a) | C55: Provision, first erection on site and final removal | D55: No | E55: 2.00
B57: B15.14 | C57: Amber flashing lights mounted on signs | D57: no | E57: 4.00
B59: 15/34.01 | C59: Pavement layers constructed from gravel taken from cut or borrow borrow including free-haul up to 1,0 km:
C61: (b) Gravel shoulders compacted to:
C62: (ii) 93% of modified AASHTO density for a compacted layer thickness of 150mm | D62: m³ | E62: =1670*6*0.15 -> 1,503.00
B63: 1500 | C63: CARRIED FORWARD
D64: C2.2.5
G66: SECTION 1500
B67: ITEM | C67: DESCRIPTION | D67: UNIT | E67: QTY | F67: RATE | G67: AMOUNT
B70: 1500 | C70: Brought forward
B73: 15.07 | C73: Blading by a road grader of:
C74: (a) Temporary deviations | D74: km-pass | E74: 1.67
C75: (b) Existing roads used as temporary deviations | D75: km-pass | E75: 1.67
B77: B15,12 | C77: Temporary culverts
C78: (a) Provision and laying of temporary prefabricated culverts
C79: complete:
C80: (i) Type SC pipe D-load pipes with ogee joints on class D
C81: bedding
C82: (1) 600mm dia | D82: m | E82: 1613
C83: (b) Re-use of prefabricated culverts complete:
C84: (i) Type SC pipe D-load pipes with ogee joints on class D
C85: bedding | D85: m | E85: 10
C86: (1) 600mm dia
B88: B15,14 | C88: The provision and maintenance of rotating lights, etc for the
C89: use of the Engineer and his staff
C90: (a) Rotating lights | D90: No | E90: 2
C91: (b) Safety vests | D91: No | E91: 4
B130: 1500 | C130: CARRIED TO SUMMARY
D132: C2.2.6

Sheet 1600
B2: SCHEDULE B : ROADWORKS
G3: SECTION 1600
B4: ITEM | C4: DESCRIPTION | D4: UNIT | E4: QTY | F4: RATE | G4: AMOUNT
B6: 1600 | C6: OVERHAUL
B8: 16.01 | C8: Overhaul on material hauled in excess of a
C9: free-haul distance of 0,5 km, for haul up to
C10: or through 1,0 km (restricted overhaul) | D10: m³ | E10: 750.00
B13: 16.02 | C13: Overhaul on material hauled in excess of
C14: 5,0 km (ordinary overhaul) | D14: m³-km | E14: 0.75
B65: 1600 | C65: CARRIED TO SUMMARY
D67: C2.2.7

Sheet 1700
B2: SCHEDULE B : ROADWORKS
G3: SECTION 1700
B4: ITEM | C4: DESCRIPTION | D4: UNIT | E4: QTY | F4: RATE | G4: AMOUNT
B6: 1700 | C6: CLEARING AND GRUBBING
B8: 17.01 | C8: Clearing and grubbing within the road reserve | D8: ha | E8: 0.10
B10: 17.02 | C10: Removal and grubbing of large trees and tree stumps
B12: (a) | C12: Grith exceeding 1m up to and including 2m | D12: no | E12: 5.00
C14: (b) Girth exceeding 2 m up to and including 3 m | D14: No. | E14: 2.00
C16: Girth larger than 3m up to andincluding 4m | D16: No. | E16: 4.00
B66: 1700 | C66: CARRIED TO SUMMARY
D68: C2.2.8

Sheet 1800
B2: SCHEDULE B : ROADWORKS
G3: SECTION 1800
B4: ITEM | C4: DESCRIPTION | D4: UNIT | E4: QTY | F4: RATE | G4: AMOUNT
B6: 1800 | C6: DAYWORKS
C8: NOTE:
C9: Dayworks are executed at the instruction of the Engineer only,
C10: Supervision of dayworks is not payable under this section and
C11: is deemed to be included under Section 1200
B13: B18,01 | C13: Labourers:
C14: (i) Unskilled | D14: hr | E14: 250.00
C15: (ii) Semi-skilled | D15: hr | E15: 250.00
C16: (iii) Skilled | D16: hr | E16: 250.00
C17: (iv) Ganger | D17: hr | E17: 125.00
C18: (v) Flagmen | D18: hr | E18: 125.00
B20: B18,02 | C20: Foreman | D20: hr | E20: 125.00
B22: B18,03 | C22: Tipper trucks:
C23: (i) 3 - 5 ton | D23: hr | E23: 125.00
C24: (ii) 5,1 - 10 ton | D24: hr | E24: 125.00
B26: B18,04 | C26: Loader (0,5m³) | D26: hr | E26: 125.00
B28: B18,05 | C28: Grader (CAT 140K or similar) | D28: hr | E28: 125.00
B30: B18,06 | C30: LDV | D30: hr | E30: 125.00
B32: B18,07 | C32: Compaction Rollers: | D32: hr | E32: 125.00
C33: (i) Vibrator roller | D33: hr | E33: 125.00
C34: (ii) Tamping roller | D34: hr | E34: 125.00
C35: (iii) Grid roller | D35: hr | E35: 125.00
B37: B18,08 | C37: Hand Controlled Compactors
C38: (i) Pedestrian roller (Bomag BW90 or similar) | D38: hr | E38: 125.00
C39: (ii) Vibratory plate | D39: hr | E39: 125.00
C40: (iii) Rammers | D40: hr | E40: 125.00
B42: B18,09 | C42: Water truck (min 10 000 l ) | D42: hr | E42: 125.00
B44: B18,10 | C44: Dozer (D7 or similar) | D44: hr | E44: 125.00
B62: 1800 | C62: CARRIED TO SUMMARY
D64: C2.2.9

Sheet 2100
B2: SCHEDULE B : ROADWORKS
G3: SECTION 2100
B4: ITEM | C4: DESCRIPTION | D4: UNIT | E4: QTY | F4: RATE | G4: AMOUNT
B6: 2100 | C6: DRAINS
B8: B21.01 | C8: Excavation for open drains:
C10: (a) Excavating soft material situated within the following depth ranges below the surface level:
C12: (i) 0m up to 1,5m | D12: m³ | E12: 400.00
C13: (ii) Exceeding 1,5 m up to 3,0 m | D13: m³ | E13: 0
C15: (b) Extra over subitem 21,01(a) for excavation in (b) hard material, irrespective of depth | D15: m³ | E15: 60.00
B17: 21.02 | C17: Clearing and shaping of existing open drains | D17: m³ | E17: 30.00
B19: 21.03 | C19: Excavation for subsoil drainage systems:
B20: (a) | C20: Excavating soft material situated within the
C21: following depth ranges below the surface level :
B22: (i) | C22: 0m up to 1,5m | D22: m³ | E22: 30.00
B23: (b) | C23: Extra over subitem 21,01(a) for excavation in hard material,
C24: irrespective of depth | D24: m³ | E24: 15.00
B26: 21.06 | C26: Natural permeable material in subsoil drainage system
C27: (crushed-stone):
B28: (b) | C28: Crushed-stone obtained from commercial sources
C29: (no-overhaul):
B30: (i) | C30: Fine grade stone (13,2mm nominal size aggregate) | D30: m³ | E30: 30.00
B32: 21.08 | C32: Pipes in subsurface drainage systems:
B33: (b) | C33: Unplasticized PVC pipes and fittings, normal duty complete
C34: with couplings:
B35: (i) | C35: 110mm diameter (perforated) | D35: m | E35: 100.00
B37: 21.1 | C37: Synthetic-fibre filter fabric:
B38: (a) | C38: Non-woven needle punched type:
B39: (i) | C39: "Kaymat U24" or approved equivalent | D39: m² | E39: =200*0.5 -> 100.00
B41: 21.12 | C41: Concrete outlet structures, manhole boxes, junction boxes
C42: cleaning eyes for subsoil drainage systems:
B44: (a) | C44: Outlet structures | D44: No, | E44: 2.00
B45: (b) | C45: Manhole boxes | D45: No, | E45: 15.00
B46: (c) | C46: Junction boxes | D46: No | E46: 3.00
B48: 21.13 | C48: Concrete caps for sub-soil drain pipes | D48: No | E48: 5.00
B50: 21.15 | C50: Overhaul for material hauled in excess of 1,0km free-
C51: haul (normal overhaul) | D51: m³-km | E51: 1.50
B53: 21.16 | C53: Backfilling existing eroded side drains | D53: No | E53: 12.00
B55: 21.17 | C55: Test flushing of pipe subsoil drains | D55: No | E55: 5.00
B57: B21.22 | C57: Subsoil outlet marker board | D57: No | E57: 5.00
B59: B21.23 | C59: Break into existing drainage structures and install subsoil drain pipe | D59: No | E59: 5.00
B62: 2100 | C62: CARRIED TO SUMMARY
D64: C2.2.10

Sheet 2200
B2: SCHEDULE B : ROADWORKS
G3: SECTION 2200
B4: ITEM | C4: DESCRIPTION | D4: UNIT | E4: QTY | F4: RATE | G4: AMOUNT
B6: 2200 | C6: PREFABRICATED CULVERTS
B8: 22.01 | C8: Excavation :
B9: (a) | C9: Excavating soft material situated within the
C10: following depth ranges below the surface level :
B11: (i) | C11: 0m up to 1,5m | D11: m³ | E11: 500.00
B12: (ii) | C12: Exceeding 1,5 m up to 3,0 m | D12: m³ | E12: 4,080.00
B14: 22.02 | C14: Backfilling :
B15: (a) | C15: Using the excavated material : | D15: m³ | E15: =E12+E11 -> 4,580.00
B16: (b) | C16: Using imported selected material : | D16: m³ | E16: 200.00
B18: 22.03 | C18: Concrete pipe culverts:
B19: (b) | C19: On class B bedding
B20: (i) | C20: Class 50 D pipes, 600mm diameter | D20: m | E20: 1,200.00
B21: (ii) | C21: Class 100D, 750mm diameter* | D21: m | E21: 0
B23: 22.05 | C23: Portal and rectangular culverts :
B24: (b) | C24: With prefabricated floor slabs, 1,2m x 1,2m (RP) Type
C25: class 100S
C26: (i) 1500mm X 1500mm | D26: m | E26: 40.00
B29: 22.07 | C29: Cast in situ concrete and formwork :
B30: (b) | C30: In floor slabs for portal culverts including formwork
C31: joints and class U2 surface finish (class 30/19 concrete) | D31: m³ | E31: =100*0.15*1.2 -> 18.00
B32: (c) | C32: In inlet and outlet structures, excluding formwork but
C33: including class U2 surface finish (class 30/19 concrete) | D33: m³ | E33: =E27*0.15*1.5 -> 0
B35: 22.1 | C35: Steel reinforcement
C36: (a) Mild steel bars | D36: t | E36: 0.50
B38: 22.12 | C38: Removing existing concrete
B39: (a) | C39: Plain concrete | D39: m³ | E39: 25.00
B40: (b) | C40: Reinforced concrete | D40: m³ | E40: 50.00
B42: 22.17 | C42: Manholes, catchpits, precast inlet and outlet structures
C43: complete:
C44: (a) manholes boxes type as indicated on drawings | D44: No. | E44: 10.00
C45: (b) Catchpit type as indicated on drawings | D45: No. | E45: 8.00
B47: 22.18 | C47: Brickwork (concrete bricks)
B48: (b) | C48: 230 mm thick | D48: m² | E48: 100.00
B50: 22.19 | C50: Plaster | D50: m³ | E50: 240.00
B52: 22/64,01 | C52: Cast in situ concrete:
B53: (a) | C53: Class 15/19 Mass concrete | D53: m³ | E53: 50.00
B65: 2200 | C65: CARRIED TO SUMMARY
D67: C2.2.11

Sheet 2300
B2: SCHEDULE B : ROADWORKS
G3: SECTION 2300
B4: ITEM | C4: DESCRIPTION | D4: UNIT | E4: QTY | F4: RATE | G4: AMOUNT
B6: 2300 | C6: CONCRETE KERBING, CHANNELING, CHUTES,
C7: DOWNPIPES AND LININGS FOR OPEN DRAINS
B9: 23.01 | C9: Concrete Kerbing:
B10: (a) | C10: Prefabricated mountable kerb, SABS 927 Fig 8c, as shown
C11: on the drawings | D11: m | E11: 1,800.00
B12: (b) | C12: Prefabricated barrier kerb, SABS 927 Fig 3, as shown
C13: on the drawings | D13: m | E13: 1,800.00
B14: (c ) | C14: Prefabricated barrier kerb, SABS 927 Fig 10, as shown
C15: on the drawings | D15: m | E15: 600.00
B17: (b) | C17: 300 mm x 200 mm cast in situ class 25/19 concrete edge
C18: beam, as shown on the drawings* | D18: m | E18: 1,000.00
B20: 23.02 | C20: Concrete kerbing-chanelling combination
B21: (a) | C21: Type A in situ cast side drain, class 25/19 concrete | D21: m3 | E21: 30.00
B23: (b) | C23: 150mm thick concrete drift, class 25/19 concrete | D23: m3 | E23: 10.00
B25: 23.07 | C25: Trimming of excavations for concrete-lined open drains:
B27: (a) | C27: In soft material | D27: m² | E27: 120.00
B28: (b) | C28: In hard material | D28: m² | E28: 40.00
B30: 23.08 | C30: Concrete lining for open drains:
B32: (a) | C32: Cast in situ class 15/19 concrete lining in v-drains* | D32: m³ | E32: 300.00
B34: (b) | C34: Class U2 surface finish to cast in-situ concrete in open lined
C35: drains* | D35: m² | E35: 840.00
B37: 23.09 | C37: Sealed joints in concrete linings of open drains | D37: m | E37: 100.00
C38: (description of type with reference to drawing
B40: 23.10 | C40: Steel reinforcing:
B41: (c) | C41: Welded steel fabric (Ref 395) | D41: kg | E41: 1,560.00
B43: 23.13 | C43: Polyethylene sheeting (0,15 mm thick) for concrete-lined
C44: open drains | D44: m² | E44: 840.00
B65: 2300 | C65: CARRIED TO SUMMARY
D67: C2.2.12

Sheet 3100
B2: SCHEDULE B : ROADWORKS
G3: SECTION 3100
B4: ITEM | C4: DESCRIPTION | D4: UNIT | E4: QTY | F4: RATE | G4: AMOUNT
B6: 3100 | C6: BORROW MATERIALS
C7: DOWNPIPES AND LININGS FOR OPEN DRAINS
B9: 31.01 | C9: Excess overburden | D9: m³ | E9: 260.00
B11: 31.03 | C11: Finishing - off borrow areas in:
C12: (b) Intermediate material | D12: ha | E12: 1.00
C14: (c ) Soft material | D14: ha | E14: 1.00
B65: 3100 | C65: CARRIED TO SUMMARY
D67: C2.2.13

Sheet 3300
B2: SCHEDULE B : ROADWORKS
G3: SECTION 3300
B4: ITEM | C4: DESCRIPTION | D4: UNIT | E4: QTY | F4: RATE | G4: AMOUNT
B6: 3300 | C6: MASS EARTHWORKS
B8: 33.04 | C8: Cut to spoil, including free-haul up to 0,5km,
C9: Material obtained from:
B11: (a) | C11: Soft excavation | D11: m³ | E11: 8,160.00
B13: (b) | C13: Intermediate excavation | D13: m³ | E13: 1,000.00
B15: (c) | C15: Hard excavation | D15: m³ | E15: 1,000.00
B17: (d) | C17: Boulder excavation class A | D17: m³ | E17: 30.00
B19: (e) | C19: Boulder excavation class B | D19: m³ | E19: 30.00
B21: 33.10 | C21: Roadbed preparation and the compaction of material:
B23: (a) | C23: Compaction to 90% of modified AASHTO density | D23: m3 | E23: 2,500.00
B25: 33.11 | C25: Three-roller-passes compaction:
B27: (a) | C27: Vibratory roller | D27: m² | E27: 15,300.00
B29: (b) | C29: Oscillatory roller | D29: m² | E29: 15,300.00
B31: (c) | C31: Grid roller | D31: m² | E31: 15,300.00
B33: (d) | C33: Tamping roller | D33: m² | E33: 15,300.00
B35: 33.12 | C35: Insitu treatment of road bed
B37: (a) | C37: In situ treatment by blasting (chemically) | D37: m³ | E37: 60.00
B39: 33.13 | C39: Finish-off cut and fill slopes, medians and interchange
C40: areas:
B42: (a) | C42: Cut slopes | D42: m² | E42: =1000*1.5 -> 1,500.00
B44: (b) | C44: Fill slopes | D44: m² | E44: 1,500.00
B46: 33/16,02 | C46: Overhaul on material hauled in excess of 1,0km (ordinary
C47: overhaul ) | D47: m³-km | E47: 260.00
B49: B33,20 | C49: Reshaping the road formation with material obtained from the road reserve and compacted to 90% of modified AASHTO density | D49: m³ | E49: 2,500.00
B63: 3300 | C63: CARRIED TO SUMMARY
D65: C2.2.14

Sheet 3400
B2: SCHEDULE B : ROADWORKS
G3: SECTION 3400
B4: ITEM | C4: DESCRIPTION | D4: UNIT | E4: QTY | F4: RATE | G4: AMOUNT
B6: 3400 | C6: PAVEMENT LAYERS OF GRAVEL MATERIAL
B8: B34.01 | C8: Pavement Layers constructed from gravel taken from
C9: commercial , private of other non-commercial suppliers.
C11: (c ) Gravel subbase material (G5) compacted to:
C12: 95% of modified AASHTO density for a compacted layer
C13: thickness of 150mm | D13: m³ | E13: 2,500.00
C15: (d) Base course material stabilized (C3)
C16: 97% of modified AASHTO density for a compacted layer
C17: thickness of 150 mm | D17: m³ | E17: 2,500.00
B19: 34.03 | C19: Pavement Layers constructed from gravel taken from
C20: borrow pits or similar approved
C22: (a) Sub-grade material G6 or better
C23: 93% of modified AASHTO density for a compacted layer
C24: thickness of 150 mm | D24: m³ | E24: 2,500.00
B26: 34.04 | C26: Cost of sampling and material testing | D26: Prov Sum | E26: 1.00 | F26: R20,000.00 | G26: =F26*E26 -> R20,000.00
B28: 34.05 | C28: Handling cost and profit in respect of item 34,05 | D28: % | E28: 10.00 | F28: =F26 -> R20,000.00 | G28: =F28*E28% -> R2,000.00
B65: 3400 | C65: CARRIED TO SUMMARY
D67: C2.2.15

Sheet 5100
B2: SCHEDULE B : ROADWORKS
G3: SECTION 5100
B4: ITEM | C4: DESCRIPTION | D4: UNIT | E4: QTY | F4: RATE | G4: AMOUNT
B6: 5100 | C6: PITCHING, STONEWORK AND PROTECTION
C7: AGAINST EROSION
B9: 51.01 | C9: Stone pitching
C11: (b) Grouted stone pitching 150mm thinkness | D11: m3 | E11: 40.00
B65: 5100 | C65: CARRIED TO SUMMARY
D67: C2.2.17

Sheet 3500
B2: SCHEDULE B : ROADWORKS
G3: SECTION 3500
B4: ITEM | C4: DESCRIPTION | D4: UNIT | E4: QTY | F4: RATE | G4: AMOUNT
B6: 3500 | C6: STABILIZATION
B8: 35.01 | C8: Chemical stabilization extra over unstabilized compacted
C9: layers :
B11: (a) | C11: Gravel base, 150mm thick | D11: m³ | E11: ='3400'!E17 -> 2,500.00
B13: 35.02 | C13: Chemical stabilizing agent:
B15: (a) | C15: Ordinary portland cement @ 3% | D15: t | E15: 140.00
B17: 35.04 | C17: Provision and application of water for curing | D17: kl | E17: 375.00
C19: Trial section for a chemically stabilised layer | D19: m³ | E19: =10*0.5*0.5*0.2 -> 0.50
C21: Mechanical modification | D21: m³ | E21: 150.00 | G21: Rate Only
B65: 3500 | C65: CARRIED TO SUMMARY
D67: C2.2.16

Sheet 5200
B2: SCHEDULE B : ROADWORKS
G3: SECTION 5200
B4: ITEM | C4: DESCRIPTION | D4: UNIT | E4: QTY | F4: RATE | G4: AMOUNT
B6: 5200 | C6: GABIONS
B8: 52.01 | C8: Foundation trench excavation and backfilling
C10: (a) in all classes of material | D10: m3 | E10: 20.00
B12: 52.02 | C12: Surface preparation for bedding the gabions | D12: m² | E12: 20.00
C14: Gabions:
C16: (a) Galvanised gabion boxes (dimensions of box, nominal
C17: diameter of mesh and mesh size)
B19: (i) | C19: (2m x 1m x 1m) with 80 x 100 x 2,7 mm mesh | D19: m3 | E19: 15.00
B21: (ii) | C21: (3m/4m x 1m x 1m) with 80 x 100 x 2,7 mm class A mesh | D21: m3 | E21: 15.00
C23: (b) Galvinized gabion reno mattresses,
B25: (i) | C25: 2,0m x 1,0m x 0,3m hexagonal woevn mesh with aperture of
C26: 80mm x 100mm mesh and diaphrams at 1,0m centres and 2,7
C27: mm dia mesh wire | D27: m3 | E27: 25.00
B29: 52.04 | C29: Filter fabric
C31: (a) Geotextile filter fabric, Bidium grade A4 or approved
C32: equivalent or similar | D32: m² | E32: 50.00
B65: 5200 | C65: CARRIED TO SUMMARY
D67: C2.2.18

Sheet 5400
B2: SCHEDULE B : ROADWORKS
G3: SECTION 5400
B4: ITEM | C4: DESCRIPTION | D4: UNIT | E4: QTY | F4: RATE | G4: AMOUNT
B6: 5400 | C6: GUARDRAILS
B9: 54.01 | C9: Guardrails on timber posts:
B11: (a) | C11: Complete galvinised system compliant to SANS 1350
C13: (a) On timber posts | D13: m | E13: 10.00
B15: 54.03 | C15: Extra over items 54.01, 54.02 and 54.11 for horizontally curved guardrails factory bent to a radius of less than 45m | D15: m | E15: 10.00
B17: 54.04 | C17: End treatments
C18: (ii) End treatments where single guardrail sections are used
B19: (a) | C19: including additional posts)
C20: (a) End wings to SANS 1350 | D20: No | E20: 5.00
C21: (b) Bull noses to SANS 1350 | D21: No. | E21: 5.00
B23: (d) | C23: End teatments in accordance with the drawings where single
C24: guardrail sections are use | D24: no | E24: 4.00
C26: (e) End treatments in accordance with the drawings where double guardrail sections are used | D26: No | E26: 4.00
B63: 5400 | C63: CARRIED TO SUMMARY
D65: C2.2.19

Sheet 5600
B2: SCHEDULE B : ROADWORKS
G3: SECTION 5600
B4: ITEM | C4: DESCRIPTION | D4: UNIT | E4: QTY | F4: RATE | G4: AMOUNT
B6: 5600 | C6: ROAD SIGNS
B8: 56.01 | C8: Road sign boards with painted or coloured semi-matt
C9: background.Symbols, lettering and borders in semi-
C10: matt black or class 1 retroreflective material, where the
C11: sign board is constructed from :
C12: All Road Signs to be SANS Compliant
C14: (a) Aluminium sheet (2,0 mm thick):
C16: (i) Area not exceeding 2 m² | D16: m² | E16: 45.00
B18: 56.02 | C18: Extra over item 56.01 for using:
C20: (a) Background of retro-reflective material:
C22: (i) Class I | D22: m² | E22: 45.00
C24: (b) Lettering Symbols, numbers, arrows, emblems and
C25: borders of retro-reflective material:
C26: (iii) Class IV (Micro-Prismatic) | D26: m² | E26: 50.00
B28: 56.03 | C28: Road sign supports (overhead road sign
C29: structures excluded):
C31: (b) Timber, 150 mm dia treated with creosote | D31: m | E31: 60.00
B33: 56.05 | C33: Excavation and backfilling for road sign
C34: supports (not applicable to kilometre posts) | D34: m³ | E34: 15.00
B36: 56.06 | C36: Extra over item 56.05 for cement-treated soil backfill | D36: m³ | E36: 12.00
B38: 56.01 | C38: Hazard plates
C39: (a) W401 | D39: No. | E39: 30.00
B65: 5600 | C65: CARRIED TO SUMMARY
D67: C2.2.20

Sheet 5700
B2: SCHEDULE B : ROADWORKS
G3: SECTION 5700
B4: ITEM | C4: DESCRIPTION | D4: UNIT | E4: QTY | F4: RATE | G4: AMOUNT
B6: 5700 | C6: ROAD MARKINGS
B8: 57.02 | C8: Retro-reflective road marking paint:
C9: (a) White line (100mm wide broken or unbroken) | D9: km | E9: 1.70
C11: (b) White lettering and symbols | D11: m² | E11: 90.00
B13: 57.06 | C13: Setting out and premarking the lines
C15: (Excluding traffic island markings, lettering and symbols) | D15: km | E15: 1.00
B65: 5700 | C65: CARRIED TO SUMMARY
D67: C2.2.21

Sheet 5900
B2: SCHEDULE B : ROADWORKS
G3: SECTION 5900
B4: ITEM | C4: DESCRIPTION | D4: UNIT | E4: QTY | F4: RATE | G4: AMOUNT
B6: 5900 | C6: FINISHING THE ROAD AND ROAD RESERVE
C7: AND TREATING OLD ROADS
B9: 59.01 | C9: Finishing the road and road reserve:
C11: (a) Single-carriageway road | D11: km | E11: 1.70
B65: 5900 | C65: CARRIED TO SUMMARY
D67: C2.2.22

Sheet 7300
B2: SCHEDULE B : ROADWORKS
G3: SECTION 7300
B4: ITEM | C4: DESCRIPTION | D4: UNIT | E4: QTY | F4: RATE | G4: AMOUNT
B6: 7300 | C6: CONCRETE BLOCK PAVING FOR ROADS
B8: 73.01 | C8: Concrete Block paving
C10: (b) 80mm thick, class 25 interlocking blocks, including 20mm
C11: sand bedding | D11: m² | E11: 11,000.00
C12: (c ) 60mm thick, grade 30MPa interlocking pavers, including
C13: 20mm sand bedding | D13: m² | E13: 2,000.00
B15: 73.02 | C15: Traffic calming devices
C17: Construction of speed humps complete as indicated on the
C18: construction drawings including road markings and signs | D18: No. | E18: 15.00
B20: 73.03 | C20: Provision of approved herbicide and ant poison
C21: (a) provision of materials | D21: L/Sum | E21: 1.00
C22: (b) Contractor's charges and profit added to the Prime Cost
C23: Sum | D23: %
B65: 7300 | C65: CARRIED TO SUMMARY
D67: C2.2.23

Sheet 8100
B2: SCHEDULE B : ROADWORKS
G3: SECTION 8100
B4: ITEM | C4: DESCRIPTION | D4: UNIT | E4: QTY | F4: RATE | G4: AMOUNT
B6: 8100 | C6: TESTING MATERIALS AND WORKMANSHIP
B8: 81.02 | C8: Other special tests requested by the Engineer:
C10: (a) Cost of testing | D10: PC Sum | E10: 1.00 | F10: R25,000.00 | G10: =F10*E10 -> R25,000.00
C12: (b) Charge on Prime Cost Sum | D12: % | E12: 10.00 | F12: =G10 -> R25,000.00 | G12: =F12*E12% -> R2,500.00
B65: 8100 | C65: CARRIED TO SUMMARY
D67: C2.2.24

Sheet TRAINING
B2: SCHEDULE C : TESTING & PROVISIONAL SUMS
F3: SECTION TRAINING
B4: ITEM | C4: DESCRIPTION | D4: UNIT | E4: QTY | F4: RATE | G4: AMOUNT
B6: C1 | C6: PROVISION OF STRUCTURED TRAINING
B8: 12.06 | C8: Provision for accredited training:
C10: (a) Generic skills | D10: Prov. Sum | E10: 1.00 | F10: R200,000.00 | G10: =F10*E10 -> R200,000.00
C12: (b) Entrepreneurial skills | D12: Prov. Sum | E12: 1.00 | F12: R200,000.00 | G12: =F12*E12 -> R200,000.00
C14: (c) Handling cost and profit in respect of sub-
C15: items E12.06(a) and (b) above | D15: % | E15: 10.00 | F15: =400000 -> R400,000.00 | G15: =F15*E15% -> R40,000.00
C17: (d) Training Venue | D17: Lump sum | E17: 1.00
B65: C1 | C65: CARRIED TO SUMMARY
D67: C2.2.25
